fUST/lending_fUST_20240421
["ID","MTS","AMOUNT","RATE_DAILY","PERIOD"]
[323116659,1713681033206,-153.0,0.000216,2]
[323116661,1713681033216,-234.1221445,0.00021639,2]
[323116663,1713681033225,-155.07660359,0.00021639,2]
[323116665,1713681033235,-167.47944015,0.00021641,2]
[323116668,1713681033245,-500.43509907,0.00021641,2]
[323116669,1713681033254,-155.47377049,0.00021641,2]
[323116672,1713681033265,-674.66776671,0.00021641,2]
[323116674,1713681033275,-259.70083876,0.00021641,2]
[323116676,1713681033285,-276.61132228,0.00021641,2]
[323116678,1713681033295,-199.96958124,0.00021641,2]
[323116680,1713681033304,-197.54540124,0.00021641,2]
[323116682,1713681033314,-156.25248474,0.00021642,2]
[323116684,1713681033324,-173.74047285,0.00021642,2]
[323116686,1713681033334,-161.50678467,0.00021642,2]
[323116688,1713681033344,-155.00387632,0.00021642,2]
[323116690,1713681033353,-184.8868415,0.00021642,2]
[323116692,1713681033362,-265.20905638,0.00021642,2]
[323116694,1713681033371,-302.78182508,0.00021642,2]
[323116696,1713681033382,-155.08827623,0.00021642,2]
[323116698,1713681033391,-155.25609088,0.00021642,2]
[323116700,1713681033401,-155.193163,0.00021642,2]
[323116702,1713681033410,-156.32424673,0.00021642,2]
[323116704,1713681033419,-194.06251263,0.00021642,2]
[323116706,1713681033430,-172.25299599,0.00021642,2]
[323116708,1713681033439,-154.98627228,0.00021642,2]
[323116710,1713681033450,-155.24378792,0.00021642,2]
[323116712,1713681033466,-154.84515485,0.00021642,2]
[323116713,1713681033481,-272.37935465,0.00021642,2]
[323116714,1713681033494,-417.73261825,0.00021642,2]
[323116715,1713681033506,-52803.36020954,0.00021642,2]
[323116716,1713681033518,-64357.78775797,0.00021643,2]
[323116717,1713681033575,154.84515485,0.00021,2]
[323116718,1713681033597,-15620.42732738,0.00021643,2]
[323116719,1713681033609,-21515.84942945,0.00021645,2]
[323116720,1713681033622,-234.56449185,0.00021694,2]
[323116721,1713681033636,-153.3583325,0.000217,2]
[323116722,1713681033647,-306.0,0.000217,2]
[323116723,1713681033660,-153.0,0.000217,2]
[323116724,1713681033674,-405.7407528,0.000217,2]
[323116725,1713681033686,-153.0,0.000217,2]
[323116726,1713681033696,-153.0,0.000217,2]
[323116727,1713681033712,-203.4508895,0.000217,2]
[323116728,1713681033727,-168.05571198,0.0002178,2]
[323116729,1713681033743,-153.0,0.000218,2]
[323116730,1713681033755,-306.0,0.000218,2]
[323116731,1713681033767,-153.0,0.000218,2]
[323116732,1713681033780,-153.0,0.000218,2]
[323116733,1713681033793,-417.0,0.00021832,2]
[323116734,1713681033807,-1004.30697703,0.00021891,2]
[323116735,1713681033821,-153.0,0.000219,2]
[323116736,1713681033835,-447.3647582,0.000219,2]
[323116737,1713681033853,-203.4508895,0.000219,2]
[323116738,1713681033865,-153.0,0.000219,2]
[323116739,1713681033876,-153.0,0.000219,2]
[323116740,1713681033887,-153.0,0.000219,2]
[323116741,1713681033899,-410.8612747,0.000219,2]
[323116742,1713681033912,-156.29704415,0.00021913,2]
[323116743,1713681033925,-304.06186205,0.00021913,2]
[323116744,1713681033937,-156.88484608,0.00021913,2]
[323116745,1713681033950,-155.1322978,0.00021913,2]
[323116746,1713681033961,-155.28568187,0.00021913,2]
[323116747,1713681033972,-300.89684472,0.00021913,2]
[323116748,1713681033983,-204.16197775,0.00021913,2]
[323116749,1713681033997,-155.06716187,0.00021913,2]
[323116750,1713681034008,-8516.00427169,0.00021913,2]
[323116751,1713681034021,-155.11667114,0.00021913,2]
[323116752,1713681034033,-154.86062544,0.00021913,2]
[323116753,1713681034045,-172.03594224,0.00021913,2]
[323116754,1713681034058,-157.5764134,0.00021913,2]
[323116755,1713681034072,-207.47804617,0.00021913,2]
[323116756,1713681034083,-302.37406276,0.00021913,2]
[323116757,1713681034095,-163.28552692,0.00021913,2]
[323116758,1713681034106,-162.48878548,0.00021913,2]
[323116759,1713681034119,-207.89845357,0.00021913,2]
[323116760,1713681034130,-155.3169759,0.00021913,2]
[323116761,1713681034144,-240.38305191,0.00021913,2]
[323116762,1713681034154,-474.41717425,0.00021915,2]
[323116763,1713681034166,-1120.31357752,0.00021915,2]
[323116764,1713681034178,-154.9927059,0.00021915,2]
[323116765,1713681034190,-155.08128342,0.00021915,2]
[323116766,1713681034201,-204.00475123,0.00021915,2]
[323116767,1713681034212,-1201.28235502,0.00021915,2]
[323116768,1713681034223,-200.0,0.00021915,2]
[323116769,1713681034235,-154.95429644,0.00021916,2]
[323116770,1713681034246,-502.84949256,0.00021917,2]
[323116771,1713681034259,-500.0,0.00021917,2]
[323116772,1713681034271,-151.0,0.00021917,2]
[323116773,1713681034284,-500.0,0.00021917,2]
[323116774,1713681034297,-515.38583008,0.00021917,2]
[323116775,1713681034308,-507.19889557,0.00021917,2]
[323116776,1713681034320,-500.0,0.00021917,2]
[323116777,1713681034332,-506.6926355,0.00021917,2]
[323116778,1713681034343,-424.7138064,0.00021917,2]
[323116779,1713681034355,-500.0,0.00021917,2]
[323116780,1713681034367,-500.0,0.00021917,2]
[323116781,1713681034378,-500.0,0.00021917,2]
[323116782,1713681034390,-509.14103355,0.00021917,2]
[323116783,1713681034401,-500.0,0.00021917,2]
[323116784,1713681034413,-500.0,0.00021917,2]
[323116785,1713681034425,-500.0,0.00021917,2]
[323116786,1713681034437,-519.26136597,0.00021917,2]
[323116787,1713681034447,-508.49853926,0.00021917,2]
[323116788,1713681034458,-500.0,0.00021917,2]
[323116789,1713681034468,-220.225749,0.00021917,2]
[323116790,1713681034477,-500.0,0.00021917,2]
[323116791,1713681034487,-500.0,0.00021917,2]
[323116792,1713681034623,-508.0,0.00021917,2]
[323116793,1713681034634,-500.0,0.00021917,2]
[323116794,1713681034643,-500.0,0.00021917,2]
[323116795,1713681034652,-151.0,0.00021917,2]
[323116796,1713681034662,-595.91,0.00021917,2]
[323116797,1713681034671,-500.0,0.00021917,2]
[323116798,1713681034680,-608.78420932,0.00021917,2]
[323116799,1713681034689,-506.33566977,0.00021917,2]
[323116800,1713681034698,-500.0,0.00021917,2]
[323116801,1713681034707,-513.684479,0.00021917,2]
[323116802,1713681034716,-364.14942894,0.00021917,2]
[323116803,1713681034982,207.80665271,0.00021,2]
[323116846,1713681038441,-709.84035765,0.00021001,2]
[323116848,1713681038451,-500.0,0.00021002,2]
[323116850,1713681038461,-297.7274064,0.00021002,2]
[323116860,1713681038550,-249.84828162,0.00021002,2]
[323116862,1713681038559,-468.11537786,0.00021002,2]
[323116864,1713681038569,-526.14121076,0.00021002,2]
[323116867,1713681038578,-662.80462958,0.00021002,2]
[323116869,1713681038588,-189.12046412,0.00021376,2]
[323116871,1713681038597,-135.85057106,0.00021917,2]
[323116872,1713681038606,-500.0,0.00021917,2]
[323116875,1713681038616,-501.73691034,0.00021917,2]
[323116876,1713681038626,-500.0,0.00021917,2]
[323116879,1713681038635,-195.046545,0.00021917,2]
[323116881,1713681038644,-151.0,0.00021917,2]
[323116883,1713681038655,-500.0,0.00021917,2]
[323116885,1713681038664,-542.67199493,0.00021917,2]
[323116887,1713681038673,-420.4344298,0.00021917,2]
[323116889,1713681038682,-500.0,0.00021917,2]
[323116890,1713681038691,-500.0,0.00021917,2]
[323116892,1713681038700,-500.0,0.00021917,2]
[323116894,1713681038709,-500.0,0.00021917,2]
[323116896,1713681038718,-501.04089288,0.00021917,2]
[323116898,1713681038727,-151.0,0.00021917,2]
[323116900,1713681038736,-500.0,0.00021917,2]
[323116902,1713681038745,-431.90218223,0.00021917,2]
[323116904,1713681038754,-501.44294445,0.00021917,2]
[323116906,1713681038763,-500.0,0.00021917,2]
[323116908,1713681038772,-500.0,0.00021917,2]
[323116910,1713681038783,-500.94637518,0.00021917,2]
[323116912,1713681038792,-503.90508328,0.00021917,2]
[323116914,1713681038802,-501.30246333,0.00021917,2]
[323116916,1713681038812,-204.536091,0.00021917,2]
[323116918,1713681038822,-502.27558915,0.00021917,2]
[323116920,1713681038832,-861.68,0.00021917,2]
[323116922,1713681038841,-501.95226391,0.00021917,2]
[323116924,1713681038854,-500.0,0.00021917,2]
[323116926,1713681038863,-502.12989956,0.00021917,2]
[323116928,1713681038872,-500.0,0.00021917,2]
[323116930,1713681038881,-500.0,0.00021917,2]
[323116932,1713681038891,-500.0,0.00021917,2]
[323116934,1713681038900,-500.0,0.00021917,2]
[323116936,1713681038910,-500.0,0.00021917,2]
[323116938,1713681038919,-500.0,0.00021917,2]
[323116940,1713681038929,-500.0,0.00021917,2]
[323116942,1713681038941,-324.93651071,0.00021917,2]
[323116944,1713681038951,-500.0,0.00021917,2]
[323116946,1713681038960,-765.32,0.00021917,2]
[323116948,1713681038969,-614.88778958,0.00021917,2]
[323116950,1713681038978,-500.0,0.00021917,2]
[323116952,1713681038988,-500.0,0.00021917,2]
[323116954,1713681038996,-428.24751003,0.00021917,2]
[323116956,1713681039005,-500.0,0.00021917,2]
[323116958,1713681039015,-500.0,0.00021917,2]
[323116960,1713681039025,-641.67088434,0.00021917,2]
[323116962,1713681039036,-737.06,0.00021917,2]
[323116964,1713681039045,-500.0,0.00021917,2]
[323116966,1713681039054,-500.0,0.00021917,2]
[323116968,1713681039063,-500.0,0.00021917,2]
[323116970,1713681039076,-500.0,0.00021917,2]
[323116972,1713681039085,-500.0,0.00021917,2]
[323116975,1713681039096,-500.0,0.00021917,2]
[323116977,1713681039105,-151.0,0.00021917,2]
[323116979,1713681039114,-500.0,0.00021917,2]
[323116980,1713681039123,-500.0,0.00021917,2]
[323116982,1713681039134,-500.0,0.00021917,2]
[323116984,1713681039144,-500.0,0.00021917,2]
[323116987,1713681039153,-882.92,0.00021917,2]
[323116989,1713681039162,-500.0,0.00021917,2]
[323116991,1713681039173,-500.0,0.00021917,2]
[323116993,1713681039182,-500.0,0.00021917,2]
[323116994,1713681039194,-1118.79,0.00021917,2]
[323116996,1713681039205,-151.0,0.00021917,2]
[323116999,1713681039214,-500.0,0.00021917,2]
[323117000,1713681039223,-2003.26,0.00021917,2]
[323117002,1713681039232,-508.39966967,0.00021917,2]
[323117004,1713681039241,-505.72068114,0.00021917,2]
[323117007,1713681039251,-847.85,0.00021917,2]
[323117009,1713681039261,-225.0955208,0.00021917,2]
[323117011,1713681039270,-973.1,0.00021917,2]
[323117013,1713681039280,-508.45515038,0.00021917,2]
[323117015,1713681039290,-500.0,0.00021917,2]
[323117017,1713681039299,-1129.46,0.00021917,2]
[323117019,1713681039308,-500.0,0.00021917,2]
[323117021,1713681039318,-500.0,0.00021917,2]
[323117022,1713681039327,-1858.5,0.00021917,2]
[323117025,1713681039336,-500.0,0.00021917,2]
[323117027,1713681039346,-859.85,0.00021917,2]
[323117028,1713681039356,-500.0,0.00021917,2]
[323117030,1713681039366,-151.0,0.00021917,2]
[323117032,1713681039375,-500.0,0.00021917,2]
[323117034,1713681039384,-500.0,0.00021917,2]
[323117036,1713681039393,-1755.7,0.00021917,2]
[323117038,1713681039403,-597.57937035,0.00021917,2]
[323117040,1713681039412,-500.0,0.00021917,2]
[323117043,1713681039422,-1195.65,0.00021917,2]
[323117045,1713681039432,-990.09,0.00021917,2]
[323117047,1713681039441,-500.0,0.00021917,2]
[323117049,1713681039450,-151.0,0.00021917,2]
[323117051,1713681039459,-153.283008,0.00021917,2]
[323117052,1713681039469,-500.0,0.00021917,2]
[323117054,1713681039479,-500.0,0.00021917,2]
[323117057,1713681039488,-6280.9,0.00021917,2]
[323117058,1713681039497,-414.250954,0.00021917,2]
[323117060,1713681039507,-414.250954,0.00021917,2]
[323117062,1713681039516,-184.020604,0.00021917,2]
[323117064,1713681039525,-184.020604,0.00021917,2]
[323117067,1713681039539,-414.250954,0.00021917,2]
[323117068,1713681039548,-414.250954,0.00021917,2]
[323117070,1713681039557,-184.020604,0.00021917,2]
[323117072,1713681039567,-184.020604,0.00021917,2]
[323117073,1713681039576,-500.0,0.00021917,2]
[323117074,1713681039586,-500.0,0.00021917,2]
[323117075,1713681039595,-593.98005266,0.00021917,2]
[323117076,1713681039604,-500.0,0.00021917,2]
[323117077,1713681039614,-500.0,0.00021917,2]
[323117078,1713681039623,-638.26830152,0.00021917,2]
[323117079,1713681039634,-5785.47,0.00021917,2]
[323117080,1713681039643,-500.0,0.00021917,2]
[323117081,1713681039653,-500.0,0.00021917,2]
[323117082,1713681039662,-522.16092501,0.00021917,2]
[323117083,1713681039671,-500.0,0.00021917,2]
[323117084,1713681039682,-999.26,0.00021917,2]
[323117085,1713681039691,-166.722068,0.00021917,2]
[323117086,1713681039701,-166.722068,0.00021917,2]
[323117087,1713681039710,-500.0,0.00021917,2]
[323117088,1713681039720,-151.0,0.00021917,2]
[323117089,1713681039729,-151.0,0.00021917,2]
[323117090,1713681039738,-166.722068,0.00021917,2]
[323117091,1713681039747,-166.722068,0.00021917,2]
[323117092,1713681039756,-585.82,0.00021917,2]
[323117094,1713681039766,-500.0,0.00021917,2]
[323117096,1713681039775,-500.0,0.00021917,2]
[323117099,1713681039787,-500.0,0.00021917,2]
[323117102,1713681039797,-500.0,0.00021917,2]
[323117105,1713681039805,-500.0,0.00021917,2]
[323117108,1713681039814,-2343.35,0.00021917,2]
[323117111,1713681039824,-2343.35,0.00021917,2]
[323117113,1713681039833,-2343.35,0.00021917,2]
[323117116,1713681039842,-2343.35,0.00021917,2]
[323117119,1713681039852,-2343.35,0.00021917,2]
[323117122,1713681039864,-2343.35,0.00021917,2]
[323117125,1713681039874,-514.54320722,0.00021917,2]
[323117128,1713681039883,-2343.35,0.00021917,2]
[323117131,1713681039892,-2343.35,0.00021917,2]
[323117134,1713681039901,-2343.35,0.00021917,2]
[323117137,1713681039910,-184.68869137,0.00021917,2]
[323117138,1713681039919,-2343.35,0.00021917,2]
[323117141,1713681039929,-500.0,0.00021917,2]
[323117145,1713681039940,-2343.35,0.00021917,2]
[323117147,1713681039950,-2343.35,0.00021917,2]
[323117150,1713681039959,-2343.35,0.00021917,2]
[323117154,1713681039969,-2343.35,0.00021917,2]
[323117156,1713681039978,-173.465923,0.00021917,2]
[323117161,1713681039989,-600.82,0.00021917,2]
[323117164,1713681039999,-685.85,0.00021917,2]
[323117181,1713681040106,-3764.97,0.00021917,2]
[323117183,1713681040115,-500.0,0.00021917,2]
[323117185,1713681040124,-500.0,0.00021917,2]
[323117186,1713681040134,-626.07,0.00021917,2]
[323117188,1713681040142,-151.0,0.00021917,2]
[323117190,1713681040151,-161.110096,0.00021917,2]
[323117192,1713681040160,-390.135278,0.00021917,2]
[323117194,1713681040169,-390.135278,0.00021917,2]
[323117195,1713681040179,-3553.7,0.00021917,2]
[323117196,1713681040188,-500.0,0.00021917,2]
[323117197,1713681040197,-500.0,0.00021917,2]
[323117198,1713681040206,-500.0,0.00021917,2]
[323117199,1713681040215,-2074.47,0.00021917,2]
[323117200,1713681040225,-390.135278,0.00021917,2]
[323117201,1713681040234,-390.135278,0.00021917,2]
[323117202,1713681040243,-500.0,0.00021917,2]
[323117203,1713681040253,-500.0,0.00021917,2]
[323117204,1713681040262,-500.0,0.00021917,2]
[323117205,1713681040271,-1463.78,0.00021917,2]
[323117206,1713681040280,-500.0,0.00021917,2]
[323117207,1713681040291,-500.0,0.00021917,2]
[323117208,1713681040300,-500.0,0.00021917,2]
[323117209,1713681040309,-546.03452535,0.00021917,2]
[323117210,1713681040319,-501.79339691,0.00021917,2]
[323117211,1713681040329,-638.11881833,0.00021917,2]
[323117212,1713681040338,-500.0,0.00021917,2]
[323117213,1713681040347,-500.0,0.00021917,2]
[323117214,1713681040357,-500.0,0.00021917,2]
[323117215,1713681040366,-506.2364864,0.00021917,2]
[323117216,1713681040376,-500.0,0.00021917,2]
[323117218,1713681040386,-208.47440961,0.00021917,2]
[323117220,1713681040395,-500.0,0.00021917,2]
[323117222,1713681040404,-500.0,0.00021917,2]
[323117223,1713681040413,-1525.03,0.00021917,2]
[323117225,1713681040423,-500.0,0.00021917,2]
[323117227,1713681040432,-2283.51,0.00021917,2]
[323117228,1713681040441,-193.23213698,0.00021917,2]
[323117229,1713681040451,-500.0,0.00021917,2]
[323117231,1713681040460,-1812.08,0.00021917,2]
[323117233,1713681040469,-231.95085135,0.00021917,2]
[323117235,1713681040479,-545.24,0.00021917,2]
[323117237,1713681040488,-500.0,0.00021917,2]
[323117239,1713681040497,-500.0,0.00021917,2]
[323117241,1713681040507,-509.407307,0.00021917,2]
[323117243,1713681040515,-504.47375358,0.00021917,2]
[323117245,1713681040524,-500.0,0.00021917,2]
[323117246,1713681040534,-502.75060513,0.00021917,2]
[323117248,1713681040544,-500.0,0.00021917,2]
[323117250,1713681040553,-155.009809,0.00021917,2]
[323117252,1713681040562,-500.0,0.00021917,2]
[323117255,1713681040571,-55793.57,0.00021917,2]
[323117256,1713681040581,-316.37896472,0.00021917,2]
[323117257,1713681040590,-500.0,0.00021917,2]
[323117258,1713681040600,-2161.83,0.00021917,2]
[323117260,1713681040610,-527.9259086,0.00021917,2]
[323117261,1713681040619,-1937.611243,0.00021917,2]
[323117263,1713681040629,-1937.611243,0.00021917,2]
[323117264,1713681040638,-500.0,0.00021917,2]
[323117266,1713681040647,-500.0,0.00021917,2]
[323117268,1713681040656,-1937.611243,0.00021917,2]
[323117270,1713681040666,-1937.611243,0.00021917,2]
[323117272,1713681040675,-151.0,0.00021917,2]
[323117274,1713681040684,-500.0,0.00021917,2]
[323117276,1713681040693,-151.0,0.00021917,2]
[323117278,1713681040702,-806.32,0.00021917,2]
[323117280,1713681040711,-506.66114656,0.00021917,2]
[323117282,1713681040720,-500.0,0.00021917,2]
[323117284,1713681040729,-808.13,0.00021917,2]
[323117286,1713681040738,-2738.35,0.00021917,2]
[323117288,1713681040747,-500.0,0.00021917,2]
[323117290,1713681040756,-500.0,0.00021917,2]
[323117292,1713681040765,-650.2,0.00021917,2]
[323117294,1713681040774,-500.0,0.00021917,2]
[323117296,1713681040785,-8470.02,0.00021917,2]
[323117298,1713681040793,-500.0,0.00021917,2]
[323117300,1713681040803,-500.0,0.00021917,2]
[323117302,1713681040811,-2897.85,0.00021917,2]
[323117304,1713681040820,-500.0,0.00021917,2]
[323117306,1713681040830,-502.52269804,0.00021917,2]
[323117308,1713681040839,-1397.36,0.00021917,2]
[323117310,1713681040849,-502.14164907,0.00021917,2]
[323117312,1713681040858,-500.0,0.00021917,2]
[323117314,1713681040869,-150.0,0.00021947,2]
[323117315,1713681040877,-2622.05694045,0.00021998,2]
[323117316,1713681040886,-154.97785632,0.00021998,2]
[323117317,1713681040897,-2343.35,0.00021998,2]
[323117318,1713681040906,-2343.35,0.00021999,2]
[323117319,1713681040915,-53432.54856831,0.00022,2]
[323117320,1713681040924,-158.99683336,0.00022,2]
[323117321,1713681040933,-1000.0,0.00022,2]
[323117322,1713681040944,-153.0,0.00022,2]
[323117323,1713681040954,-151.0,0.00022,2]
[323117324,1713681040963,-151.0,0.00022,2]
[323117325,1713681040972,-151.0,0.00022,2]
[323117326,1713681040982,-1937.611243,0.00022,2]
[323117327,1713681040992,-1937.611243,0.00022,2]
[323117328,1713681041001,-151.0,0.00022,2]
[323117329,1713681041010,-500.0,0.0002204,2]
[323117330,1713681041020,-153.0,0.000221,2]
[323117331,1713681041030,-153.0,0.000221,2]
[323117332,1713681041041,-2343.35,0.00022189,2]
[323117333,1713681041050,-151.0,0.0002219,2]
[323117334,1713681041059,-414.250954,0.0002219,2]
[323117335,1713681041069,-414.250954,0.0002219,2]
[323117336,1713681041078,-184.020604,0.0002219,2]
[323117337,1713681041088,-184.020604,0.0002219,2]
[323117338,1713681041097,-166.722068,0.0002219,2]
[323117339,1713681041106,-151.0,0.0002219,2]
[323117340,1713681041115,-166.722068,0.0002219,2]
[323117341,1713681041127,-2343.35,0.0002219,2]
[323117342,1713681041136,-2343.35,0.0002219,2]
[323117343,1713681041145,-2343.35,0.0002219,2]
[323117344,1713681041155,-2343.35,0.0002219,2]
[323117345,1713681041164,-2343.35,0.0002219,2]
[323117346,1713681041173,-2343.35,0.0002219,2]
[323117347,1713681041181,-2343.49187847,0.0002219,2]
[323117348,1713681041190,-390.135278,0.0002219,2]
[323117349,1713681041200,-390.135278,0.0002219,2]
[323117350,1713681041210,-503.20979086,0.00022191,2]
[323117351,1713681041220,-346.17265378,0.00022191,2]
[323117352,1713681041229,-151.0,0.00022191,2]
[323117353,1713681041240,-151.0,0.00022191,2]
[323117354,1713681041251,-500.0,0.00022191,2]
[323117355,1713681041261,-529.10227808,0.00022191,2]
[323117356,1713681041271,-455.72544647,0.00022191,2]
[323117357,1713681041281,-500.0,0.00022191,2]
[323117358,1713681041291,-500.0,0.00022191,2]
[323117359,1713681041301,-500.0,0.00022191,2]
[323117360,1713681041311,-500.0,0.00022191,2]
[323117361,1713681041320,-519.17095461,0.00022191,2]
[323117362,1713681041329,-510.81026941,0.00022191,2]
[323117363,1713681041338,-152.17000445,0.00022191,2]
[323117364,1713681041349,-500.0,0.00022191,2]
[323117365,1713681041358,-502.93098282,0.00022191,2]
[323117366,1713681041367,-151.227304,0.00022191,2]
[323117367,1713681041376,-595.91,0.00022191,2]
[323117368,1713681041385,-522.19498796,0.00022191,2]
[323117369,1713681041394,-500.0,0.00022191,2]
[323117370,1713681041404,-500.0,0.00022191,2]
[323117371,1713681041413,-500.0,0.00022191,2]
[323117372,1713681041422,-500.0,0.00022191,2]
[323117373,1713681041432,-151.0,0.00022191,2]
[323117374,1713681041441,-500.0,0.00022191,2]
[323117375,1713681041450,-500.0,0.00022191,2]
[323117376,1713681041459,-500.0,0.00022191,2]
[323117377,1713681041469,-538.49087518,0.00022191,2]
[323117378,1713681041479,-177.38118792,0.00022191,2]
[323117379,1713681041488,-151.0,0.00022191,2]
[323117380,1713681041498,-151.0,0.00022191,2]
[323117381,1713681041507,-500.0,0.00022191,2]
[323117382,1713681041516,-500.0,0.00022191,2]
[323117383,1713681041526,-527.5663066,0.00022191,2]
[323117384,1713681041537,-861.68,0.00022191,2]
[323117385,1713681041546,-580.94122252,0.00022191,2]
[323117386,1713681041555,-500.0,0.00022191,2]
[323117387,1713681041564,-500.0,0.00022191,2]
[323117388,1713681041573,-765.32,0.00022191,2]
[323117389,1713681041582,-500.0,0.00022191,2]
[323117390,1713681041592,-600.22419037,0.00022191,2]
[323117391,1713681041602,-500.0,0.00022191,2]
[323117392,1713681041615,-500.0,0.00022191,2]
[323117393,1713681041624,-737.06,0.00022191,2]
[323117394,1713681041634,-518.60271181,0.00022191,2]
[323117395,1713681041643,-500.0,0.00022191,2]
[323117396,1713681041652,-479.8512528,0.00022191,2]
[323117397,1713681041902,-156.08493432,0.00021001,2]
[323117398,1713681041913,-705.40305203,0.00021001,2]
[323117399,1713681041923,-1311.22668928,0.00021916,2]
[323117400,1713681041933,-500.68377275,0.00021917,2]
[323117401,1713681041944,-151.0,0.00021917,2]
[323117402,1713681041954,-151.0,0.00021917,2]
[323117403,1713681041964,-151.0,0.0002219,2]
[323117404,1713681041973,-37.3446797,0.00022191,2]
[323117405,1713681041982,-500.0,0.00022191,2]
[323117406,1713681041991,-500.0,0.00022191,2]
[323117407,1713681042001,-500.0,0.00022191,2]
[323117408,1713681042010,-500.0,0.00022191,2]
[323117409,1713681042020,-500.0,0.00022191,2]
[323117410,1713681042030,-505.72218197,0.00022191,2]
[323117411,1713681042040,-500.0,0.00022191,2]
[323117412,1713681042049,-882.92,0.00022191,2]
[323117413,1713681042058,-500.0,0.00022191,2]
[323117414,1713681042067,-175.00008771,0.00022191,2]
[323117448,1713681065234,2620.22735599,0.00020518,2]
[323117449,1713681067200,10112.50231779,0.00021,2]
[323117450,1713681085160,2126.82461787,0.00021,2]
[323117451,1713681087498,4933.66577357,0.00020901,2]
[323117452,1713681092373,150.0,0.000199,2]
[323117453,1713681096364,241.42272,0.00021,2]
[323117454,1713681099912,247.12439728,0.00021,2]
[323117455,1713681102109,3342.94822412,0.00021,2]
[323117457,1713681393784,215.30437281,0.000199,2]
[323117458,1713681455342,349.514436,0.00020793,2]
[323117459,1713681670574,451.93241924,0.00020793,2]
[323117460,1713681692610,451.93241924,0.00020793,2]
[323117461,1713681695538,150.0,0.000199,2]
[323117462,1713681873549,-410.47435021,0.00021913,7]
[323117463,1713681873589,-2047.54913963,0.00022,7]
[323117464,1713681873677,-150.83408251,0.00023926,7]
[323117465,1713681873703,-150.5,0.00024353,7]
[323117466,1713681873722,-150.5,0.00024363,7]
[323117467,1713681873743,-150.5,0.00024373,7]
[323117468,1713681873768,-8802.98816881,0.00024463,7]
[323117469,1713681900011,-160.0,0.00025312,7]
[323117470,1713681922269,-160.0,0.00025896,8]
[323117471,1713681922291,-427.65425884,0.00026,30]
[323117472,1713681971623,174.757218,0.00020561,2]
[323117473,1713682019304,15850.5097696,0.00020561,2]
[323117499,1713682232608,-354.6718789,0.0002131,2]
[323117500,1713682232618,-189.12046412,0.0002131,2]
[323117501,1713682232627,-154.84515485,0.0002131,2]
[323117502,1713682232636,-154.84515485,0.00021311,2]
[323117503,1713682232645,-203.76133713,0.00021311,2]
[323117504,1713682232654,-154.84515485,0.00021311,2]
[323117505,1713682232663,-3342.94822412,0.00021311,2]
[323117506,1713682232672,-526.14121076,0.00021312,2]
[323117508,1713682232681,-154.84515485,0.00021312,2]
[323117509,1713682232690,-519.72911189,0.00021312,2]
[323117511,1713682232699,-193.52697819,0.00021313,2]
[323117513,1713682232707,-300.0,0.00021313,2]
[323117515,1713682232716,-1311.22668928,0.00021314,2]
[323117517,1713682232725,-2098.69136625,0.00021314,2]
[323117519,1713682232735,-883.42675349,0.00021314,2]
[323117521,1713682232743,-539.63707301,0.00021315,2]
[323117523,1713682232752,-2586.79174796,0.00021315,2]
[323117524,1713682232761,-241.42272,0.00021316,2]
[323117525,1713682232770,-154.84515485,0.00021316,2]